fUST/lending_fUST_20250806
["ID","MTS","AMOUNT","RATE_DAILY","PERIOD"]
[377636421,1754471932722,-159.28972776,0.000411,120]
[377636422,1754471932747,-159.28972776,0.000411,120]
[377636423,1754471932771,-159.28972776,0.000411,120]
[377636424,1754471932798,-159.28972776,0.000411,120]
[377636425,1754471932825,-159.28972776,0.000411,120]
[377636426,1754471932851,-159.28972776,0.000411,120]
[377636427,1754471932875,-159.28972776,0.000411,120]
[377636428,1754471932904,-159.28,0.000411,120]
[377636429,1754471932933,-245.75911,0.000412,120]
[377636430,1754471932961,-245.04479,0.000414,120]
[377636431,1754471932989,-200.0,0.000416,120]
[377636432,1754471933016,-153.0,0.000416,120]
[377636433,1754471933044,-200.0,0.0004188,120]
[377636434,1754471933071,-2157.05,0.00041917,120]
[377636435,1754471933099,-200.0,0.00042067,120]
[377636436,1754471933124,-500.0,0.00042172,60]
[377636437,1754471933151,-500.0,0.00042465,120]
[377636438,1754471933176,-5000.0,0.000425,100]
[377636439,1754471933201,-165.0,0.000426,60]
[377636440,1754471933228,-153.0,0.000427,120]
[377636441,1754471933254,-2157.05,0.00042739,120]
[377636442,1754471933281,-200.0,0.00042846,120]
[377636443,1754471933308,-200.0,0.00042846,120]
[377636444,1754471933334,-200.0,0.00042917,120]
[377636445,1754471933361,-200.0,0.00042917,120]
[377636446,1754471933388,-245.75911,0.000431,120]
[377636447,1754471933413,-315.61574559,0.00043268,60]
[377636448,1754471933441,-2157.05,0.00043561,120]
[377636449,1754471933467,-200.0,0.000436,120]
[377636450,1754471933496,-200.0,0.00043603,120]
[377636451,1754471933523,-1727.88192014,0.00043715,28]
[377636452,1754471933550,-200.0,0.00043724,120]
[377636453,1754471933575,-467.93141667,0.00043835,120]
[377636454,1754471933600,-153.0,0.000439,120]
[377636455,1754471933627,-387.37843585,0.00044,120]
[377636456,1754471933659,-400.0,0.00044,120]
[377636457,1754471933685,-200.0,0.00044082,120]
[377636458,1754471933711,-2157.05,0.00044383,120]
[377636459,1754471933737,-1000.0,0.0004439,120]
[377636460,1754471933763,-245.75911,0.00045,120]
[377636461,1754471933791,-200.0,0.00045,120]
[377636462,1754471933817,-633.41870687,0.00045,120]
[377636463,1754471933843,-1000.0,0.00045,120]
[377636464,1754471933872,-652.7101,0.00045,120]
[377636465,1754471933902,-153.0,0.00045,120]
[377636466,1754471933931,-200.0,0.00045017,120]
[377636467,1754471933959,-2157.05,0.00045205,120]
[377636468,1754471933985,-500.0,0.00045205,10]
[377636469,1754471934012,-337.07,0.00045205,10]
[377636470,1754471934038,-500.0,0.00045205,15]
[377636471,1754471934066,-169.66,0.00045205,10]
[377636472,1754471934093,-200.0,0.00045443,120]
[377636473,1754471934127,-200.0,0.000456,120]
[377636474,1754471934163,-534.0,0.000458,120]
[377636475,1754471934192,-500.0,0.00045876,60]
[377636476,1754471934222,-2157.05,0.00046027,120]
[377636477,1754471934252,-200.0,0.00046034,120]
[377636478,1754471934280,-153.0,0.000462,120]
[377636479,1754471934308,-200.0,0.00046282,120]
[377636480,1754471934335,-457.81332448,0.00046466,120]
[377636481,1754471934363,-426.8,0.0004647,120]
[377636482,1754471934393,-200.0,0.00046474,120]
[377636483,1754471934421,-200.0,0.00046521,120]
[377636484,1754471934449,-346.91,0.000467,120]
[377636485,1754471934478,-200.0,0.00046736,120]
[377636486,1754471934506,-2157.05,0.00046849,120]
[377636487,1754471934533,-245.75911,0.000469,120]
[377636488,1754471934560,-3027.96473397,0.00047,120]
[377636489,1754471934587,-1727.88192014,0.00047283,28]
[377636490,1754471934614,-153.0,0.000473,120]
[377636491,1754471934641,-200.0,0.000476,120]
[377636492,1754471934669,-2157.05,0.00047671,120]
[377636493,1754471934696,-300.0,0.00048,120]
[377636494,1754471934721,-83879.85552702,0.00048,120]
[377636495,1754471934748,-560.24968323,0.00048,120]
[377636496,1754471934775,-293.5089,0.000483,120]
[377636497,1754471934805,-2157.05,0.00048493,120]
[377636498,1754471934834,-153.0,0.000485,120]
[377636499,1754471934860,-202.0,0.00048684,30]
[377636500,1754471934894,-200.0,0.00048768,120]
[377636501,1754471934925,-245.75914,0.000488,120]
[377636502,1754471934954,-2298.88800228,0.000488,120]
[377636503,1754471934982,-309.04919981,0.00049,15]
[377636504,1754471935010,-376.34,0.00049015,15]
[377636505,1754471935038,-245.04481,0.000492,120]
[377636506,1754471935067,-1003.64606864,0.00049315,120]
[377636507,1754471935098,-2157.05,0.00049315,120]
[377636508,1754471935125,-300.0,0.00049315,120]
[377636509,1754471935155,-300.0,0.00049315,120]
[377636510,1754471935357,-300.0,0.00049315,120]
[377636511,1754471935387,-300.0,0.00049315,120]
[377636512,1754471935413,-300.0,0.00049315,120]
[377636513,1754471935439,-300.0,0.00049315,120]
[377636514,1754471935466,-300.0,0.00049315,120]
[377636515,1754471935493,-300.0,0.00049315,120]
[377636516,1754471935519,-300.0,0.00049315,120]
[377636517,1754471935546,-300.0,0.00049315,120]
[377636518,1754471935573,-300.0,0.00049315,120]
[377636519,1754471935600,-369.48532208,0.00049315,120]
[377636520,1754471935626,-202.0,0.00049369,31]
[377636521,1754471935653,-376.25102,0.000496,120]
[377636522,1754471935680,-153.0,0.000496,120]
[377636523,1754471935707,-200.0,0.00049618,120]
[377636524,1754471935734,-1000.0,0.0005,120]
[377636525,1754471935760,-200.0,0.0005,120]
[377636526,1754471935785,-400.0,0.0005,120]
[377636527,1754471935811,-999.82432358,0.0005,120]
[377636528,1754471935836,-1000.0,0.0005,120]
[377636529,1754471935860,-10845.45833996,0.0005,120]
[377636530,1754471935887,-5148.098,0.0005,120]
[377636531,1754471935914,-1542.74,0.0005,14]
[377636532,1754471935943,-202.0,0.00050054,32]
[377636533,1754471935971,-2157.05,0.00050136,120]
[377636534,1754471936002,-200.0,0.0005017,120]
[377636535,1754471936028,-200.0,0.00050301,120]
[377636536,1754471936053,-202.0,0.00050739,33]
[377636537,1754471936079,-153.0,0.000508,120]
[377636538,1754471936105,-1727.88192014,0.00050852,28]
[377636539,1754471936131,-2157.05,0.00050958,120]
[377636540,1754471936159,-1000.0,0.00051,120]
[377636541,1754471936185,-200.343615,0.00051,85]
[377636542,1754471936210,-200.0,0.00051416,120]
[377636543,1754471936235,-200.0,0.00051416,120]
[377636544,1754471936260,-202.0,0.00051424,34]
[377636545,1754471936286,-200.0,0.000515,120]
[377636546,1754471936311,-200.0,0.000515,120]
[377636547,1754471936336,-337.05794994,0.000515,120]
[377636548,1754471936363,-2157.23478502,0.0005178,120]
[377636549,1754471936389,-153.0,0.000519,120]
[377636550,1754471936415,-426.8,0.000519,120]
[377636551,1754471936442,-1000.0,0.00052,120]
[377636552,1754471936468,-291.87203532,0.00052,120]
[377636553,1754471936494,-508.902517,0.00052,60]
[377636554,1754471936521,-19448.39,0.00052,14]
[377636555,1754471936547,-200.0,0.00052045,120]
[377636556,1754471936576,-500.0,0.00052054,120]
[377636557,1754471936604,-762.1,0.00052054,120]
[377636558,1754471936629,-202.0,0.00052109,35]
[377636559,1754471936656,-500.0,0.00052328,120]
[377636560,1754471936683,-762.1,0.00052328,120]
[377636561,1754471936711,-200.0,0.00052408,120]
[377636562,1754471936739,-500.0,0.00052602,120]
[377636563,1754471936766,-762.1,0.00052602,120]
[377636564,1754471936793,-13940.85712582,0.00052719,120]
[377636565,1754471944177,-2722.30052768,0.00029235,11]
[377636566,1754471944211,-2722.30052768,0.0003008,13]
[377636567,1754471944238,-500.0,0.00030137,15]
[377636568,1754471944265,-500.0,0.00030137,30]
[377636569,1754471944292,-500.0,0.00030137,15]
[377636570,1754471944319,-500.0,0.00030137,30]
[377636571,1754471944353,-2722.30052768,0.00030925,15]
[377636572,1754471944711,-2722.30052768,0.0003177,17]
[377636573,1754471944748,-2722.30052768,0.00032616,18]
[377636574,1754471944781,-2722.30052768,0.00033461,20]
[377636575,1754471944813,-2722.30052768,0.00034306,22]
[377636576,1754471944847,-2722.30052768,0.00035151,24]
[377636577,1754471944881,-2722.30052768,0.00035996,26]
[377636578,1754471944919,-2722.30052768,0.00036841,27]
[377636579,1754471944954,-2722.30052768,0.00037687,29]
[377636580,1754471945004,-2722.30052768,0.00038532,31]
[377636581,1754471945041,-2722.30052768,0.00039377,33]
[377636582,1754471945075,-2722.30052768,0.00040222,35]
[377636583,1754471945110,-2722.30052768,0.00041067,36]
[377636584,1754471945145,-2722.30052768,0.00041913,38]
[377636585,1754471945178,-2722.30052768,0.00042758,40]
[377636586,1754471945218,-2722.30052768,0.00043603,42]
[377636587,1754471945257,-2722.30052768,0.00044448,44]
[377636588,1754471945289,-2722.30052768,0.00045293,46]
[377636589,1754471945320,-2722.30052768,0.00046139,47]
[377636590,1754471945352,-2722.30052768,0.00046984,49]
[377636591,1754471945383,-2722.30052768,0.00047829,51]
[377636592,1754471945420,-2722.30052768,0.00048674,53]
[377636593,1754471945453,-2722.30052768,0.00049519,55]
[377636594,1754471945489,-2722.30052768,0.00050364,56]
[377636595,1754471945524,-2722.30052768,0.0005121,58]
[377636596,1754471945555,-415.91051919,0.00052,120]
[377636597,1754471945797,-2722.30052768,0.00052055,60]
[377636598,1754471945828,-75310.06706616,0.00052719,120]
[377636599,1754471945859,-202.0,0.00052794,36]
[377636600,1754471945890,-500.0,0.00052876,120]
[377636601,1754471945929,-762.1,0.00052876,120]
[377636602,1754471945959,-2105.41764887,0.00052899,62]
[377636603,1754471945988,-151.31165432,0.00052899,62]
[377636604,1754471946017,-250.0,0.00052899,62]
[377636605,1754471946044,-151.0,0.00052899,62]
[377636606,1754471946071,-21396.85944216,0.00052899,62]
[377636607,1754471946099,-300.0,0.00052899,62]
[377636608,1754471946125,-300.0,0.00052899,62]
[377636609,1754471946155,-151.0,0.00052899,62]
[377636610,1754471946182,-500.0,0.00052899,62]
[377636611,1754471946208,-502.31646193,0.00052899,62]
[377636612,1754471946234,-151.0,0.00052899,62]
[377636613,1754471946450,-2722.30052768,0.000529,62]
[377636614,1754471946496,-1000.0,0.00052999,120]
[377636615,1754471946526,-1000.0,0.00053,120]
[377636616,1754471946555,-153.0,0.000531,120]
[377636617,1754471946583,-69652.74782906,0.00053133,10]
[377636618,1754471946612,-500.0,0.0005315,120]
[377636619,1754471946640,-762.1,0.0005315,120]
[377636620,1754471946668,-200.0,0.00053376,120]
[377636621,1754471946697,-500.0,0.00053424,120]
[377636622,1754471946725,-762.1,0.00053424,120]
[377636623,1754471946753,-151.0,0.00053469,99]
[377636624,1754471946781,-250.0,0.00053469,99]
[377636625,1754471946809,-151.0,0.00053469,99]
[377636626,1754471946842,-20633.42279861,0.00053469,99]
[377636627,1754471946875,-300.0,0.00053469,99]
[377636628,1754471946903,-300.0,0.00053469,99]
[377636629,1754471946933,-151.0,0.00053469,99]
[377636630,1754471946960,-500.0,0.00053469,99]
[377636631,1754471946987,-500.0,0.00053469,99]
[377636632,1754471947015,-151.0,0.00053469,99]
[377636633,1754471947041,-2030.296672,0.00053478,53]
[377636634,1754471947067,-151.0,0.00053478,53]
[377636635,1754471947093,-250.0,0.00053478,53]
[377636636,1754471947119,-151.0,0.00053478,53]
[377636637,1754471947148,-19897.22545671,0.00053478,53]
[377636638,1754471947174,-300.0,0.00053478,53]
[377636639,1754471947200,-300.0,0.00053478,53]
[377636640,1754471947225,-151.0,0.00053478,53]
[377636641,1754471947250,-500.0,0.00053478,53]
[377636642,1754471947277,-500.0,0.00053478,53]
[377636643,1754471947302,-151.0,0.00053478,53]
[377636644,1754471947327,-202.0,0.00053479,37]
[377636645,1754471947355,-500.0,0.00053698,120]
[377636646,1754471947382,-762.1,0.00053698,120]
[377636647,1754471947411,-301475.11817436,0.00053948,120]
[377636648,1754471947450,-200.0,0.00053963,120]
[377636649,1754471947481,-500.0,0.00053972,120]
[377636650,1754471947510,-762.1,0.00053972,120]
[377636651,1754471947538,-191.83,0.0005398,120]
[377636652,1754471947566,-803.89,0.0005398,120]
[377636653,1754471947592,-184.0,0.0005399,120]
[377636654,1754471947618,-796.0,0.0005399,120]
[377636655,1754471947644,-1000.0,0.00053999,120]
[377636656,1754471947673,-1000.0,0.00054,120]
[377636657,1754471947701,-400.0,0.00054,120]
[377636658,1754471947727,-680.29288662,0.00054,120]
[377636659,1754471947754,-41799.09,0.00054,14]
[377636660,1754471947782,-202.0,0.00054164,38]
[377636661,1754471947808,-1140.924628,0.000542,120]
[377636662,1754471947835,-153.0,0.000542,120]
[377636663,1754471947864,-500.0,0.00054246,120]
[377636664,1754471947895,-762.1,0.00054246,120]
[377636665,1754471947925,-1727.88192014,0.0005442,28]
[377636666,1754471947952,-1338163.08153915,0.0005444,30]
[377636667,1754471954655,-2000000.0,0.0005444,30]
[377636668,1754471958855,-1661836.91846085,0.0005444,30]
[377636669,1754471958884,-2504.793,0.0005444,120]
[377636670,1754471958916,-500.0,0.0005452,120]
[377636671,1754471958949,-762.1,0.0005452,120]
[377636672,1754471958978,-500.0,0.00054794,120]
[377636673,1754471959006,-762.1,0.00054794,120]
[377636674,1754471959033,-197.43823436,0.00054794,120]
[377636675,1754471959060,-202.0,0.00054849,120]
[377636676,1754471959087,-151.0,0.00054896,90]
[377636677,1754471959113,-250.0,0.00054896,90]
[377636678,1754471959138,-151.0,0.00054896,90]
[377636679,1754471959166,-19187.29552238,0.00054896,90]
[377636680,1754471959193,-300.0,0.00054896,90]
[377636681,1754471959220,-300.0,0.00054896,90]
[377636682,1754471959247,-151.0,0.00054896,90]
[377636683,1754471959274,-500.0,0.00054896,90]
[377636684,1754471959302,-500.0,0.00054896,90]
[377636685,1754471959330,-151.0,0.00054896,90]
[377636686,1754471959359,-2505.2,0.000549,14]
[377636687,1754471959389,-500.0,0.00054914,60]
[377636688,1754471959418,-1318.6887122,0.00054948,66]
[377636689,1754471959446,-1000.0,0.00054999,120]
[377636690,1754471959475,-1000.0,0.00055,120]
[377636691,1754471959502,-20416.44468046,0.00055,120]
[377636692,1754471959529,-545.98561708,0.00055,120]
[377636693,1754471959557,-1250.63866088,0.00055,120]
[377636694,1754471959584,-1010.60492284,0.00055,120]
[377636695,1754471959611,-1000.0,0.00055,120]
[377636696,1754471959637,-524.9937614,0.00055,120]
[377636697,1754471959665,-500.0,0.00055068,120]
[377636698,1754471959694,-762.1,0.00055068,120]
[377636699,1754471959723,-200.0,0.00055135,120]
[377636700,1754471959752,-500.0,0.00055342,120]
[377636701,1754471959781,-762.1,0.00055342,120]
[377636702,1754471959808,-153.0,0.000554,120]
[377636703,1754471959835,-202.0,0.00055534,120]
[377636704,1754471959862,-500.0,0.00055616,120]
[377636705,1754471959891,-762.1,0.00055616,120]
[377636706,1754471959923,-163.2344324,0.0005589,120]
[377636707,1754471959951,-762.1,0.0005589,120]
[377636708,1754471959980,-1000.0,0.00055999,120]
[377636709,1754471960009,-1000.0,0.00056,120]
[377636710,1754471960037,-724.0,0.00056,120]
[377636711,1754471960065,-762.1,0.00056164,120]
[377636712,1754471960093,-313.45976513,0.00056183,120]
[377636713,1754471960121,-202.0,0.00056219,120]
[377636714,1754471960148,-200.0,0.00056273,120]
[377636715,1754471960175,-200.0,0.00056337,120]
[377636716,1754471960202,-762.1,0.00056438,120]
[377636717,1754471960227,-500.0,0.00056458,60]
[377636718,1754471960254,-153.0,0.000565,120]
[377636719,1754471960281,-346.91,0.000567,120]
[377636720,1754471960308,-762.1,0.00056712,120]
[377636721,1754471960333,-18964.0,0.000569,120]
[377636722,1754471960361,-1323.55,0.000569,120]
[377636723,1754471960387,-202.0,0.00056904,120]
[377636724,1754471960416,-762.1,0.00056986,120]
[377636725,1754471960444,-200.0,0.00056996,120]
[377636726,1754471960474,-1000.0,0.00056999,120]
[377636727,1754471960503,-151.0,0.00056999,120]
[377636728,1754471960533,-250.0,0.00056999,120]
[377636729,1754471960560,-151.0,0.00056999,120]
[377636730,1754471960588,-18502.69577858,0.00056999,120]
[377636731,1754471960616,-300.0,0.00056999,120]
[377636732,1754471960644,-300.0,0.00056999,120]
[377636733,1754471960672,-151.0,0.00056999,120]
[377636734,1754471960699,-500.0,0.00056999,120]
[377636735,1754471960728,-500.0,0.00056999,120]
[377636736,1754471960757,-151.0,0.00056999,120]
[377636737,1754471960785,-1000.0,0.00057,120]
[377636738,1754471960813,-2000.0,0.00057,66]
[377636739,1754471960840,-100056.4729396,0.00057,120]
[377636740,1754471960868,-1000.0,0.00057,14]
[377636741,1754471961028,-20180.43834487,0.00057,10]
[377636742,1754471961065,-1957.856,0.00057131,60]
[377636743,1754471961101,-151.0,0.00057131,60]
[377636744,1754471961134,-250.0,0.00057131,60]
[377636745,1754471961163,-151.0,0.00057131,60]
[377636746,1754471961190,-17842.522448,0.00057131,60]
[377636747,1754471961218,-300.0,0.00057131,60]
[377636748,1754471961247,-300.0,0.00057131,60]
[377636749,1754471961278,-151.0,0.00057131,60]
[377636750,1754471961306,-500.0,0.00057131,60]
[377636751,1754471961339,-500.0,0.00057131,60]
[377636752,1754471961370,-151.0,0.00057131,60]
[377636753,1754471961406,-762.1,0.0005726,120]
[377636754,1754471961435,-151.0,0.00057299,83]
[377636755,1754471961465,-300.0,0.00057299,83]
[377636756,1754471961503,-250.0,0.00057299,83]
[377636757,1754471961533,-151.0,0.00057299,83]
[377636758,1754471961562,-17205.904,0.00057299,83]
[377636759,1754471961593,-300.0,0.00057299,83]
[377636760,1754471961622,-151.0,0.00057299,83]
[377636761,1754471961651,-151.0,0.00057299,83]
[377636762,1754471961681,-500.0,0.00057299,83]
[377636763,1754471961712,-500.0,0.00057299,83]
[377636764,1754471961742,-151.0,0.00057299,83]
[377636765,1754471961774,-1000.0,0.000573,14]
[377636766,1754471961803,-1000.0,0.000573,14]
[377636767,1754471961834,-153.1159004,0.00057328,120]
[377636768,1754471961863,-151.0,0.00057328,120]
[377636769,1754471961893,-300.0,0.00057328,120]
[377636770,1754471961926,-250.0,0.00057328,120]
[377636771,1754471961957,-151.0,0.00057328,120]
[377636772,1754471961989,-16592.0,0.00057328,120]
[377636773,1754471962022,-300.0,0.00057328,120]
[377636774,1754471962054,-151.0,0.00057328,120]
[377636775,1754471962088,-151.0,0.00057328,120]
[377636776,1754471962119,-500.0,0.00057328,120]
[377636777,1754471962148,-500.0,0.00057328,120]
[377636778,1754471962179,-151.0,0.00057328,120]
[377636779,1754471962213,-1000.0,0.00057329,120]
[377636780,1754471962251,-250.0,0.00057329,30]
[377636781,1754471962281,-151.0,0.00057329,30]
[377636782,1754471962311,-151.0,0.00057329,30]
[377636783,1754471962340,-300.0,0.00057329,30]
[377636784,1754471962370,-1888.0,0.00057329,30]
[377636785,1754471962398,-151.0,0.00057329,30]
[377636786,1754471962425,-16000.0,0.00057329,30]
[377636787,1754471962458,-151.0,0.00057329,30]
[377636788,1754471962492,-300.0,0.00057329,30]
[377636789,1754471962521,-151.0,0.00057329,30]
[377636790,1754471962549,-500.0,0.00057329,30]
[377636791,1754471962578,-500.0,0.00057329,30]
[377636792,1754471962604,-151.0,0.00057329,30]
[377636793,1754471962631,-426.8,0.00057329,120]
[377636794,1754471962657,-13934.93881857,0.0005733,30]
[377636795,1754471972957,462.57671447,0.0003,120]
[377636796,1754471975346,-500.0,0.00030161,120]
[377636797,1754471975373,-500.0,0.00030161,120]
[377636798,1754471975399,-500.0,0.00030161,120]
[377636799,1754471975425,-500.0,0.00030161,120]
[377636800,1754471975451,-500.0,0.00030161,120]
[377636801,1754471975478,-500.0,0.00030161,120]
[377636802,1754471975855,-9724.2,0.000339,14]
[377636803,1754471975886,-9724.2,0.000367,14]
[377636804,1754471975915,-9724.2,0.000394,14]
[377636805,1754471975948,-1388.47,0.00051,14]
[377636806,1754471975974,-9724.2,0.000554,14]
[377636807,1754471976000,-1277765.52843745,0.0005733,30]
[377636808,1754471976029,-500.0,0.0005733,30]
[377636809,1754471976055,-500.0,0.0005733,30]
[377636810,1754471976080,-593.24961039,0.0005733,30]
[377636811,1754471976106,-500.0,0.0005733,30]
[377636812,1754471976131,-500.0,0.0005733,30]
[377636813,1754471976157,-519.49748189,0.0005733,30]
[377636814,1754471976183,-2000.0,0.0005733,30]
[377636815,1754471976211,-2000.0,0.0005733,30]
[377636816,1754471976238,-2000.0,0.0005733,30]
[377636817,1754471976264,-2000.0,0.0005733,30]
[377636818,1754471976290,-2000.0,0.0005733,30]
[377636819,1754471976320,-945.116,0.0005733,30]
[377636820,1754471976357,-500.0,0.0005733,30]
[377636821,1754471976383,-500.0,0.000575,120]
[377636822,1754471976410,-1388.47,0.000575,14]
[377636823,1754471976438,-762.1,0.00057534,120]
[377636824,1754471976464,-202.0,0.00057589,120]
[377636825,1754471976493,-153.0,0.000577,120]
[377636826,1754471976521,-200.0,0.00057777,120]
[377636827,1754471976549,-762.1,0.00057808,120]
[377636828,1754471976575,-167.1113691,0.00058,60]
[377636829,1754471976601,-1000.0,0.00058,120]
[377636830,1754471976628,-1000.0,0.00058,120]
[377636831,1754471976665,-4295.0,0.00058,120]
[377636832,1754471976693,-1210.0,0.00058,68]
[377636833,1754471976722,-762.1,0.00058082,120]
[377636834,1754471976752,-202.0,0.00058273,120]
[377636835,1754471976780,-9724.2,0.000583,14]
[377636836,1754471976812,-762.22534252,0.00058356,120]
[377636837,1754471976840,-200.0,0.00058671,120]
[377636838,1754471976868,-153.0,0.000588,120]
[377636839,1754471976895,-200.0,0.00058888,120]
[377636840,1754471976922,-202.0,0.00058958,120]
[377636841,1754471976953,-1000.0,0.00059,120]
[377636842,1754471976981,-1000.0,0.00059,120]
[377636843,1754471977009,-200.0,0.00059119,120]
[377636844,1754471977036,-202.0,0.00059643,120]
[377636845,1754471977063,-200.0,0.00059887,120]
[377636846,1754471977090,-1000.0,0.000599,120]
[377636847,1754471977116,-3637.34661236,0.000599,120]
[377636848,1754471977143,-420.91,0.0005998,30]
[377636849,1754471977175,-704.48391623,0.0006,12]
[377636850,1754471977391,-1000.0,0.0006,120]
[377636851,1754471977418,-999.82487713,0.0006,120]
[377636852,1754471977447,-5000.0,0.0006,120]
[377636853,1754471977473,-626.46611779,0.0006,120]
[377636854,1754471977502,-153.0,0.0006,120]
[377636855,1754471977529,-312.16666667,0.0006,10]
[377636856,1754471977555,-527.46908335,0.0006,10]
[377636857,1754471977581,-1207.61,0.00060273,10]
[377636858,1754471977607,-1207.61,0.00060273,10]
[377636859,1754471977633,-1207.61,0.00060273,10]
[377636860,1754471977659,-1207.61,0.00060273,10]
[377636861,1754471977685,-377.67,0.00060274,10]
[377636862,1754471977713,-303.08,0.00060274,10]
[377636863,1754471977740,-334.83,0.00060274,15]
[377636864,1754471977767,-202.0,0.00060328,120]
[377636865,1754471977793,-364.76,0.00060552,30]
[377636866,1754471977820,-450.0,0.00061012,15]
[377636867,1754471977850,-202.0,0.00061013,120]
[377636868,1754471977876,-153.0,0.000611,120]
[377636869,1754471977904,-500400.0,0.0006111,30]
[377636870,1754471977935,-416.08,0.00061349,10]
[377636871,1754471977962,-202.0,0.00061698,120]
[377636872,1754471977991,-800.0,0.00062,120]
[377636873,1754471978020,-500.0,0.00062,60]
[377636874,1754471978048,-153.0,0.000623,120]
[377636875,1754471978075,-202.0,0.00062383,120]
[377636876,1754471978101,-400.0,0.00063,120]
[377636877,1754471978135,500.0,0.00030161,120]
[377636878,1754471978286,500.0,0.00030161,120]
[377636879,1754471978360,500.0,0.00062714,120]
[377636880,1754471978394,505.51844708,0.00062714,120]
[377636881,1754471978450,500.0,0.00030161,120]
[377636882,1754471978567,500.0,0.00030161,120]
[377636883,1754471978676,500.0,0.00030161,120]
[377636884,1754471979035,20899.55,0.00033,14]
[377636885,1754471979066,500.0,0.00062714,120]
[377636886,1754471979217,500.0,0.00062714,120]
[377636887,1754471979269,500.0,0.00030161,120]
[377636888,1754471979373,20899.55,0.000356,14]
[377636889,1754471979411,500.0,0.00062714,120]
[377636890,1754471979607,500.0,0.00062714,120]
[377636891,1754471979907,500.0,0.00062714,120]
[377636892,1754471979944,20899.55,0.000384,14]
[377636893,1754471980023,500.0,0.00062714,120]
[377636894,1754471980165,500.0,0.00030161,120]
[377636895,1754471980270,20899.55,0.0005,14]
[377636896,1754471980767,20899.55,0.000573,14]
[377636897,1754471981068,500.0,0.00030161,120]
[377636898,1754471981862,500.0,0.00030161,120]
[377636899,1754471981959,268.23603804,0.00062,14]
[377636901,1754472005533,583.7,0.00030137,120]
[377636902,1754472005560,13680.72557849,1e-05,5]
[377636903,1754472005583,20000.0,1e-05,5]
[377636904,1754472005605,20000.0,1e-05,5]
[377636905,1754472005626,20000.0,1e-05,5]
[377636906,1754472005650,20000.0,1e-05,5]
[377636907,1754472005672,9860.83665126,1e-05,5]
[377636908,1754472005696,10000.0,1e-05,5]
[377636909,1754472005717,10000.0,1e-05,5]
[377636910,1754472005887,25000.0,1e-05,5]
[377636911,1754472005919,25000.0,1e-05,5]
[377636912,1754472005942,3360.82238469,1e-05,5]
[377636913,1754472017809,308.38447632,0.0003,120]
[377636915,1754472062736,205.58965088,0.0003,120]
[377636918,1754472101980,550.0,0.000273,120]
[377636919,1754472107757,205.58965088,0.0003,120]
[377636946,1754472152317,150.5,0.00030041,120]
[377636947,1754472152853,225.33,0.00030031,120]
[377636948,1754472208684,201.2,0.0002518,2]
[377636949,1754472223447,793.599542,0.00027397,120]
[377637336,1754472362894,1980.32373267,0.0003,120]